[Event "Titled Tuesday Blitz November 29 Early 2022"]
[White "Mikhalsky, Vladimir"]
[Black "Koellner, Ruben Gideon"]
[WhiteFideId "14144352"]
[BlackFideId "12993093"]
[WhiteElo "2271"]
[BlackElo "2303"]
[Result "0-1"]
[Round "06"]
[TimeControl "180+1"]
[Date "2022.11.30"]
[WhiteClock "0:00:02"]
[BlackClock "0:00:13"]

1. d4 {[%clk 0:02:57]}  d6 {[%clk 0:02:58]} 2. e4 {[%clk 0:02:56]}  Nf6 {[%clk 0:02:56]} 3. f3 {[%clk 0:02:53]}  e5 {[%clk 0:02:57]} 4. d5 {[%clk 0:02:51]}  Be7 {[%clk 0:02:56]} 5. c4 {[%clk 0:02:51]}  O-O {[%clk 0:02:55]} 6. b3 {[%clk 0:02:45]}  c6 {[%clk 0:02:54]} 7. Bb2 {[%clk 0:02:44]}  cxd5 {[%clk 0:02:54]} 8. cxd5 {[%clk 0:02:41]}  Nbd7 {[%clk 0:02:54]} 9. Bd3 {[%clk 0:02:30]}  Nc5 {[%clk 0:02:49]} 10. Bc2 {[%clk 0:02:29]}  b5 {[%clk 0:02:48]} 11. b4 {[%clk 0:02:25]}  Ncd7 {[%clk 0:02:47]} 12. Nc3 {[%clk 0:02:22]}  a6 {[%clk 0:02:44]} 13. a4 {[%clk 0:02:19]}  bxa4 {[%clk 0:02:44]} 14. Bxa4 {[%clk 0:02:08]}  Nb6 {[%clk 0:02:30]} 15. Bc6 {[%clk 0:02:07]}  Rb8 {[%clk 0:02:25]} 16. Qd3 {[%clk 0:02:07]}  Nh5 {[%clk 0:02:01]} 17. Nge2 {[%clk 0:02:03]}  f5 {[%clk 0:01:58]} 18. O-O {[%clk 0:01:56]}  f4 {[%clk 0:01:20]} 19. b5 {[%clk 0:01:34]}  axb5 {[%clk 0:01:18]} 20. Nxb5 {[%clk 0:01:33]}  g5 {[%clk 0:01:16]} 21. h3 {[%clk 0:01:31]}  Nf6 {[%clk 0:01:10]} 22. Na7 {[%clk 0:01:23]}  h5 {[%clk 0:01:04]} 23. Nxc8 {[%clk 0:01:19]}  Nxc8 {[%clk 0:00:58]} 24. Bc3 {[%clk 0:01:15]}  g4 {[%clk 0:00:58]} 25. Ba5 {[%clk 0:01:08]}  Nb6 {[%clk 0:00:54]} 26. Rfb1 {[%clk 0:01:03]}  Qc7 {[%clk 0:00:53]} 27. Qb5 {[%clk 0:00:55]}  Bd8 {[%clk 0:00:52]} 28. Nc3 {[%clk 0:00:51]}  Qc8 {[%clk 0:00:32]} 29. Na4 {[%clk 0:00:42]}  Nbd7 {[%clk 0:00:19]} 30. Bb7 {[%clk 0:00:13]}  Qc2 {[%clk 0:00:17]} 31. Bxd8 {[%clk 0:00:10]}  Rfxd8 {[%clk 0:00:17]} 32. Qb2 {[%clk 0:00:09]}  Qd3 {[%clk 0:00:15]} 33. Rd1 {[%clk 0:00:07]}  Qe3+ {[%clk 0:00:15]} 34. Kh1 {[%clk 0:00:05]}  gxf3 {[%clk 0:00:15]} 35. Ra3 {[%clk 0:00:05]}  Qxe4 {[%clk 0:00:14]} 36. gxf3 {[%clk 0:00:04]}  Qf5 {[%clk 0:00:14]} 37. Qg2+ {[%clk 0:00:03]}  Kh7 {[%clk 0:00:14]} 38. Bc6 {[%clk 0:00:03]}  Rg8 {[%clk 0:00:14]} 39. Qh2 {[%clk 0:00:03]}  Rg3 {[%clk 0:00:14]} 40. Bxd7 {[%clk 0:00:02]}  Nxd7 {[%clk 0:00:15]} 41. Nc3 {[%clk 0:00:02]}  Rxh3 {[%clk 0:00:15]} 42. Ra7 {[%clk 0:00:02]}  Rg8 {[%clk 0:00:13]} 0-1


[Site "https://www.chess.com"]

[Event "Titled Tuesday Blitz November 29 Early 2022"]
[White "Mohamed Anees M"]
[Black "Balabayeva, Xeniya"]
[WhiteFideId "35065815"]
[BlackFideId "13719688"]
[WhiteElo "2135"]
[BlackElo "2041"]
[Result "1-0"]
[Round "06"]
[TimeControl "180+1"]
[Date "2022.11.30"]
[WhiteClock "0:00:20"]
[BlackClock "0:00:02"]

1. e4 {[%clk 0:03:00]}  c6 {[%clk 0:02:57]} 2. Nf3 {[%clk 0:03:00]}  d5 {[%clk 0:02:54]} 3. d3 {[%clk 0:03:00]}  g6 {[%clk 0:02:44]} 4. Nbd2 {[%clk 0:02:59]}  Bg7 {[%clk 0:02:43]} 5. g3 {[%clk 0:03:00]}  e5 {[%clk 0:02:37]} 6. Bg2 {[%clk 0:03:00]}  Ne7 {[%clk 0:02:37]} 7. O-O {[%clk 0:02:59]}  O-O {[%clk 0:02:35]} 8. b3 {[%clk 0:02:59]}  d4 {[%clk 0:02:32]} 9. Nc4 {[%clk 0:02:49]}  Qc7 {[%clk 0:02:27]} 10. a4 {[%clk 0:02:49]}  c5 {[%clk 0:02:24]} 11. Nh4 {[%clk 0:02:47]}  Nbc6 {[%clk 0:02:09]} 12. f4 {[%clk 0:02:47]}  exf4 {[%clk 0:02:02]} 13. Bxf4 {[%clk 0:02:46]}  Ne5 {[%clk 0:01:58]} 14. Nf3 {[%clk 0:02:46]}  N7c6 {[%clk 0:01:53]} 15. Qe2 {[%clk 0:02:38]}  Be6 {[%clk 0:01:48]} 16. Ncxe5 {[%clk 0:02:37]}  Nxe5 {[%clk 0:01:47]} 17. Nd2 {[%clk 0:02:30]}  Rae8 {[%clk 0:01:42]} 18. Rae1 {[%clk 0:02:28]}  Qe7 {[%clk 0:01:34]} 19. Kh1 {[%clk 0:02:20]}  Ng4 {[%clk 0:00:58]} 20. Nf3 {[%clk 0:02:17]}  Bd7 {[%clk 0:00:46]} 21. Bg5 {[%clk 0:02:06]}  f6 {[%clk 0:00:43]} 22. Bf4 {[%clk 0:02:04]}  h5 {[%clk 0:00:40]} 23. h3 {[%clk 0:02:02]}  Nh6 {[%clk 0:00:37]} 24. Qd2 {[%clk 0:01:51]}  g5 {[%clk 0:00:26]} 25. Nxg5 {[%clk 0:01:48]}  fxg5 {[%clk 0:00:26]} 26. Bxg5 {[%clk 0:01:49]}  Qe6 {[%clk 0:00:24]} 27. Bf4 {[%clk 0:01:42]}  Nf7 {[%clk 0:00:19]} 28. Qe2 {[%clk 0:01:32]}  Qg6 {[%clk 0:00:19]} 29. h4 {[%clk 0:01:11]}  Ne5 {[%clk 0:00:17]} 30. Qd2 {[%clk 0:01:10]}  Ng4 {[%clk 0:00:17]} 31. Bf3 {[%clk 0:01:04]}  Be5 {[%clk 0:00:16]} 32. Bxg4 {[%clk 0:01:02]}  Qxg4 {[%clk 0:00:16]} 33. Bxe5 {[%clk 0:00:59]}  Rxf1+ {[%clk 0:00:15]} 34. Rxf1 {[%clk 0:01:00]}  Rxe5 {[%clk 0:00:16]} 35. Qf2 {[%clk 0:00:55]}  Qg7 {[%clk 0:00:10]} 36. Qf4 {[%clk 0:00:54]}  Re6 {[%clk 0:00:09]} 37. Kh2 {[%clk 0:00:53]}  Rg6 {[%clk 0:00:09]} 38. Qb8+ {[%clk 0:00:52]}  Kh7 {[%clk 0:00:09]} 39. Rf3 {[%clk 0:00:47]}  b6 {[%clk 0:00:09]} 40. Qf4 {[%clk 0:00:44]}  Bg4 {[%clk 0:00:08]} 41. Rf2 {[%clk 0:00:43]}  Qe7 {[%clk 0:00:08]} 42. Qb8 {[%clk 0:00:40]}  Kg7 {[%clk 0:00:07]} 43. e5 {[%clk 0:00:37]}  Be6 {[%clk 0:00:06]} 44. Rf4 {[%clk 0:00:36]}  Bd7 {[%clk 0:00:05]} 45. Qxa7 {[%clk 0:00:32]}  Qe6 {[%clk 0:00:05]} 46. g4 {[%clk 0:00:26]}  hxg4 {[%clk 0:00:04]} 47. Kg3 {[%clk 0:00:25]}  Kh6 {[%clk 0:00:04]} 48. Qb8 {[%clk 0:00:24]}  Kh7 {[%clk 0:00:03]} 49. h5 {[%clk 0:00:24]}  Rg7 {[%clk 0:00:03]} 50. Rf6 {[%clk 0:00:23]}  Qd5 {[%clk 0:00:02]} 51. Rh6+ {[%clk 0:00:20]} 1-0


[Site "https://www.chess.com"]

[Event "Titled Tuesday Blitz November 29 Early 2022"]
[White "Nugumanov, Bakhtiyar"]
[Black "Sadovsky, Artem"]
[WhiteFideId "13701797"]
[BlackFideId "4155840"]
[WhiteElo "2287"]
[BlackElo "2312"]
[Result "1/2-1/2"]
[Round "06"]
[TimeControl "180+1"]
[Date "2022.11.30"]
[WhiteClock "0:00:08"]
[BlackClock "0:00:10"]

1. e4 {[%clk 0:03:00]}  g6 {[%clk 0:02:12]} 2. d4 {[%clk 0:03:00]}  Bg7 {[%clk 0:02:12]} 3. Nc3 {[%clk 0:02:58]}  c6 {[%clk 0:02:12]} 4. Nf3 {[%clk 0:02:22]}  d5 {[%clk 0:02:13]} 5. e5 {[%clk 0:02:10]}  h5 {[%clk 0:01:49]} 6. Bd3 {[%clk 0:02:02]}  Nh6 {[%clk 0:01:48]} 7. O-O {[%clk 0:01:59]}  Bf5 {[%clk 0:01:47]} 8. Ne2 {[%clk 0:01:51]}  Bxd3 {[%clk 0:01:30]} 9. Qxd3 {[%clk 0:01:52]}  Nf5 {[%clk 0:01:31]} 10. c4 {[%clk 0:01:51]}  e6 {[%clk 0:01:31]} 11. b4 {[%clk 0:01:43]}  dxc4 {[%clk 0:01:31]} 12. Qxc4 {[%clk 0:01:42]}  a6 {[%clk 0:01:32]} 13. a4 {[%clk 0:01:41]}  Nd7 {[%clk 0:01:32]} 14. Ba3 {[%clk 0:01:39]}  Nb6 {[%clk 0:01:20]} 15. Qb3 {[%clk 0:01:35]}  Qd5 {[%clk 0:01:20]} 16. Qd3 {[%clk 0:01:21]}  Qc4 {[%clk 0:01:07]} 17. Qd2 {[%clk 0:01:14]}  O-O {[%clk 0:01:05]} 18. Rfc1 {[%clk 0:01:01]}  Qd5 {[%clk 0:01:05]} 19. b5 {[%clk 0:01:00]}  Rfd8 {[%clk 0:01:04]} 20. bxc6 {[%clk 0:00:59]}  Nc4 {[%clk 0:01:04]} 21. Qa2 {[%clk 0:00:48]}  b5 {[%clk 0:01:03]} 22. Nc3 {[%clk 0:00:19]}  Qxc6 {[%clk 0:00:50]} 23. axb5 {[%clk 0:00:19]}  axb5 {[%clk 0:00:51]} 24. Nxb5 {[%clk 0:00:20]}  Qxb5 {[%clk 0:00:34]} 25. Qxc4 {[%clk 0:00:21]}  Qxc4 {[%clk 0:00:33]} 26. Rxc4 {[%clk 0:00:21]}  Bf8 {[%clk 0:00:34]} 27. Rc3 {[%clk 0:00:22]}  Bxa3 {[%clk 0:00:33]} 28. Rcxa3 {[%clk 0:00:22]}  Rxa3 {[%clk 0:00:34]} 29. Rxa3 {[%clk 0:00:23]}  Nxd4 {[%clk 0:00:35]} 30. Nxd4 {[%clk 0:00:21]}  Rxd4 {[%clk 0:00:36]} 31. g3 {[%clk 0:00:20]}  Rd5 {[%clk 0:00:36]} 32. Re3 {[%clk 0:00:19]}  g5 {[%clk 0:00:36]} 33. Kg2 {[%clk 0:00:19]}  Kg7 {[%clk 0:00:36]} 34. h4 {[%clk 0:00:17]}  g4 {[%clk 0:00:35]} 35. f3 {[%clk 0:00:17]}  Kg6 {[%clk 0:00:35]} 36. fxg4 {[%clk 0:00:17]}  hxg4 {[%clk 0:00:36]} 37. Re4 {[%clk 0:00:13]}  Kf5 {[%clk 0:00:36]} 38. Rf4+ {[%clk 0:00:14]}  Kxe5 {[%clk 0:00:36]} 39. Rxf7 {[%clk 0:00:14]}  Rd2+ {[%clk 0:00:36]} 40. Kf1 {[%clk 0:00:13]}  Rd3 {[%clk 0:00:37]} 41. Kf2 {[%clk 0:00:13]}  Rd2+ {[%clk 0:00:18]} 42. Kf1 {[%clk 0:00:12]}  Rh2 {[%clk 0:00:17]} 43. Rf4 {[%clk 0:00:11]}  Ra2 {[%clk 0:00:16]} 44. Rxg4 {[%clk 0:00:11]}  Kd5 {[%clk 0:00:16]} 45. h5 {[%clk 0:00:11]}  e5 {[%clk 0:00:17]} 46. h6 {[%clk 0:00:11]}  Ra7 {[%clk 0:00:14]} 47. Rh4 {[%clk 0:00:09]}  Rh7 {[%clk 0:00:12]} 48. g4 {[%clk 0:00:10]}  Ke4 {[%clk 0:00:12]} 49. g5+ {[%clk 0:00:11]}  Kf5 {[%clk 0:00:13]} 50. Rh5 {[%clk 0:00:03]}  Kg6 {[%clk 0:00:13]} 51. Rh2 {[%clk 0:00:03]}  Kxg5 {[%clk 0:00:14]} 52. Re2 {[%clk 0:00:04]}  Kf5 {[%clk 0:00:14]} 53. Rf2+ {[%clk 0:00:04]}  Ke6 {[%clk 0:00:14]} 54. Rh2 {[%clk 0:00:05]}  Kf5 {[%clk 0:00:15]} 55. Ke2 {[%clk 0:00:05]}  Kg5 {[%clk 0:00:15]} 56. Ke3 {[%clk 0:00:06]}  Rxh6 {[%clk 0:00:08]} 57. Rxh6 {[%clk 0:00:07]}  Kxh6 {[%clk 0:00:09]} 58. Ke4 {[%clk 0:00:07]}  Kg5 {[%clk 0:00:10]} 59. Kxe5 {[%clk 0:00:08]} 1/2-1/2


[Site "https://www.chess.com"]

[Event "Titled Tuesday Blitz November 29 Early 2022"]
[White "Orzech, Dominik"]
[Black "Dehtiarov, Roman"]
[WhiteFideId "1115065"]
[BlackFideId "14186640"]
[WhiteElo "2272"]
[BlackElo "2200"]
[Result "1-0"]
[Round "06"]
[TimeControl "180+1"]
[Date "2022.11.30"]
[WhiteClock "0:00:23"]
[BlackClock "0:00:02"]

1. Nf3 {[%clk 0:02:58]}  Nf6 {[%clk 0:02:59]} 2. c4 {[%clk 0:02:56]}  c5 {[%clk 0:02:59]} 3. g3 {[%clk 0:02:46]}  Nc6 {[%clk 0:02:59]} 4. Bg2 {[%clk 0:02:46]}  e5 {[%clk 0:02:59]} 5. O-O {[%clk 0:02:46]}  d6 {[%clk 0:03:00]} 6. Nc3 {[%clk 0:02:47]}  g6 {[%clk 0:02:56]} 7. Ne1 {[%clk 0:02:46]}  Bg7 {[%clk 0:02:52]} 8. Nc2 {[%clk 0:02:44]}  O-O {[%clk 0:02:52]} 9. Rb1 {[%clk 0:02:44]}  Be6 {[%clk 0:02:52]} 10. Nd5 {[%clk 0:02:44]}  Bxd5 {[%clk 0:02:48]} 11. cxd5 {[%clk 0:02:37]}  Ne7 {[%clk 0:02:48]} 12. e4 {[%clk 0:02:34]}  Nd7 {[%clk 0:02:45]} 13. d3 {[%clk 0:02:24]}  h6 {[%clk 0:02:44]} 14. Ne3 {[%clk 0:02:18]}  Kh7 {[%clk 0:02:42]} 15. Nc4 {[%clk 0:02:18]}  Qc7 {[%clk 0:02:39]} 16. a4 {[%clk 0:02:18]}  b6 {[%clk 0:02:38]} 17. f4 {[%clk 0:02:12]}  a6 {[%clk 0:02:27]} 18. f5 {[%clk 0:01:56]}  gxf5 {[%clk 0:02:25]} 19. exf5 {[%clk 0:01:56]}  Nf6 {[%clk 0:02:25]} 20. Be4 {[%clk 0:01:54]}  Nexd5 {[%clk 0:02:19]} 21. Qf3 {[%clk 0:01:54]}  Nb4 {[%clk 0:01:49]} 22. Bxa8 {[%clk 0:01:33]}  d5 {[%clk 0:01:49]} 23. Bxd5 {[%clk 0:01:25]}  Nbxd5 {[%clk 0:01:50]} 24. Ne3 {[%clk 0:01:22]}  Nb4 {[%clk 0:01:44]} 25. Ng4 {[%clk 0:01:21]}  Qd6 {[%clk 0:01:26]} 26. Rd1 {[%clk 0:01:13]}  Nc6 {[%clk 0:01:19]} 27. Be3 {[%clk 0:01:09]}  a5 {[%clk 0:01:13]} 28. Nf2 {[%clk 0:00:57]}  Nd4 {[%clk 0:01:04]} 29. Bxd4 {[%clk 0:00:55]}  Qxd4 {[%clk 0:01:05]} 30. Kg2 {[%clk 0:00:54]}  Rd8 {[%clk 0:00:56]} 31. b3 {[%clk 0:00:53]}  Nd5 {[%clk 0:00:51]} 32. Re1 {[%clk 0:00:52]}  Nf6 {[%clk 0:00:45]} 33. Rbc1 {[%clk 0:00:39]}  Qb4 {[%clk 0:00:40]} 34. Rb1 {[%clk 0:00:38]}  Rd4 {[%clk 0:00:38]} 35. Rxe5 {[%clk 0:00:37]}  Qd2 {[%clk 0:00:20]} 36. Re7 {[%clk 0:00:34]}  Kg8 {[%clk 0:00:15]} 37. Rbe1 {[%clk 0:00:33]}  Rd8 {[%clk 0:00:15]} 38. R1e2 {[%clk 0:00:33]}  Qb4 {[%clk 0:00:14]} 39. Ne4 {[%clk 0:00:32]}  Nd5 {[%clk 0:00:10]} 40. f6 {[%clk 0:00:29]}  Nxe7 {[%clk 0:00:06]} 41. fxe7 {[%clk 0:00:27]}  Re8 {[%clk 0:00:03]} 42. Nd6 {[%clk 0:00:27]}  Rxe7 {[%clk 0:00:02]} 43. Rxe7 {[%clk 0:00:27]}  Qd2+ {[%clk 0:00:01]} 44. Re2 {[%clk 0:00:27]}  Qxd3 {[%clk 0:00:01]} 45. Qxf7+ {[%clk 0:00:25]}  Kh8 {[%clk 0:00:01]} 46. Re8+ {[%clk 0:00:26]}  Kh7 {[%clk 0:00:01]} 47. Qg8+ {[%clk 0:00:23]}  Kg6 {[%clk 0:00:02]} 48. Re6+ {[%clk 0:00:23]}  Kh5 {[%clk 0:00:02]} 49. Qf7+ {[%clk 0:00:22]}  Kg5 {[%clk 0:00:02]} 50. Qf4+ {[%clk 0:00:22]}  Kh5 {[%clk 0:00:02]} 51. Qh4# {[%clk 0:00:23]} 1-0


[Site "https://www.chess.com"]

[Event "Titled Tuesday Blitz November 29 Early 2022"]
[White "Ovchinnikov, Vsevolod"]
[Black "Berezin, Viktor"]
[WhiteFideId "24176842"]
[BlackFideId "14107872"]
[WhiteElo "2376"]
[BlackElo "2310"]
[Result "1/2-1/2"]
[Round "06"]
[TimeControl "180+1"]
[Date "2022.11.30"]
[WhiteClock "0:00:02"]
[BlackClock "0:00:30"]

1. Nf3 {[%clk 0:03:00]}  Nf6 {[%clk 0:02:58]} 2. c4 {[%clk 0:03:01]}  g6 {[%clk 0:02:59]} 3. b3 {[%clk 0:03:01]}  Bg7 {[%clk 0:03:00]} 4. Bb2 {[%clk 0:03:02]}  O-O {[%clk 0:03:00]} 5. g3 {[%clk 0:03:01]}  d6 {[%clk 0:03:01]} 6. d4 {[%clk 0:03:01]}  Nc6 {[%clk 0:03:01]} 7. Bg2 {[%clk 0:03:02]}  Rb8 {[%clk 0:03:02]} 8. O-O {[%clk 0:02:57]}  a6 {[%clk 0:03:02]} 9. d5 {[%clk 0:02:32]}  Na5 {[%clk 0:03:01]} 10. Bc3 {[%clk 0:02:20]}  c5 {[%clk 0:02:57]} 11. Qe1 {[%clk 0:02:19]}  b6 {[%clk 0:02:56]} 12. e4 {[%clk 0:01:59]}  Nb7 {[%clk 0:02:45]} 13. a4 {[%clk 0:01:54]}  Bg4 {[%clk 0:02:40]} 14. Nfd2 {[%clk 0:01:34]}  Bd7 {[%clk 0:02:35]} 15. f4 {[%clk 0:01:26]}  b5 {[%clk 0:02:25]} 16. axb5 {[%clk 0:01:21]}  axb5 {[%clk 0:02:24]} 17. e5 {[%clk 0:01:22]}  Ng4 {[%clk 0:02:11]} 18. h3 {[%clk 0:01:20]}  Nh6 {[%clk 0:02:11]} 19. g4 {[%clk 0:01:13]}  f6 {[%clk 0:02:08]} 20. e6 {[%clk 0:01:06]}  Be8 {[%clk 0:02:08]} 21. f5 {[%clk 0:01:03]}  gxf5 {[%clk 0:02:06]} 22. gxf5 {[%clk 0:01:03]}  Kh8 {[%clk 0:02:06]} 23. Ne4 {[%clk 0:00:59]}  Ra8 {[%clk 0:01:56]} 24. Nbd2 {[%clk 0:00:53]}  Rxa1 {[%clk 0:01:50]} 25. Qxa1 {[%clk 0:00:54]}  b4 {[%clk 0:01:50]} 26. Bb2 {[%clk 0:00:53]}  Bh5 {[%clk 0:01:44]} 27. Qe1 {[%clk 0:00:52]}  Na5 {[%clk 0:01:38]} 28. Ng3 {[%clk 0:00:36]}  Be8 {[%clk 0:01:32]} 29. Qe4 {[%clk 0:00:31]}  Rg8 {[%clk 0:01:28]} 30. Qh4 {[%clk 0:00:28]}  Bf8 {[%clk 0:01:20]} 31. Rf3 {[%clk 0:00:20]}  Qa8 {[%clk 0:01:08]} 32. Kh2 {[%clk 0:00:17]}  Nxb3 {[%clk 0:01:08]} 33. Nxb3 {[%clk 0:00:17]}  Qa2 {[%clk 0:01:08]} 34. Bc1 {[%clk 0:00:15]}  Nxf5 {[%clk 0:01:00]} 35. Rxf5 {[%clk 0:00:15]}  Qxb3 {[%clk 0:01:00]} 36. Rf3 {[%clk 0:00:03]}  Qc2 {[%clk 0:00:58]} 37. Rf1 {[%clk 0:00:01]}  b3 {[%clk 0:00:56]} 38. Qe4 {[%clk 0:00:01]}  Bg6 {[%clk 0:00:50]} 39. Qxc2 {[%clk 0:00:01]}  Bxc2 {[%clk 0:00:51]} 40. Rf2 {[%clk 0:00:01]}  Bh6 {[%clk 0:00:45]} 41. Be4 {[%clk 0:00:02]}  Bxc1 {[%clk 0:00:44]} 42. Bxc2 {[%clk 0:00:02]}  bxc2 {[%clk 0:00:45]} 43. Rxc2 {[%clk 0:00:02]}  Bf4 {[%clk 0:00:44]} 44. Rc3 {[%clk 0:00:03]}  Be5 {[%clk 0:00:43]} 45. Rf3 {[%clk 0:00:03]}  Rb8 {[%clk 0:00:42]} 46. Kh1 {[%clk 0:00:02]}  Rb4 {[%clk 0:00:42]} 47. Nf5 {[%clk 0:00:02]}  Rb7 {[%clk 0:00:37]} 48. Kg2 {[%clk 0:00:02]}  h5 {[%clk 0:00:36]} 49. h4 {[%clk 0:00:03]}  Kh7 {[%clk 0:00:37]} 50. Rf1 {[%clk 0:00:02]}  Kg6 {[%clk 0:00:37]} 51. Ne3 {[%clk 0:00:02]}  Bd4 {[%clk 0:00:36]} 52. Nf5 {[%clk 0:00:02]}  Be5 {[%clk 0:00:34]} 53. Rf2 {[%clk 0:00:02]}  Ra7 {[%clk 0:00:30]} 1/2-1/2


[Site "https://www.chess.com"]

[Event "Titled Tuesday Blitz November 29 Early 2022"]
[White "Ovezdurdyyeva, Jemal"]
[Black "Fabris, Alberto"]
[WhiteFideId "14001888"]
[BlackFideId "801348"]
[WhiteElo "1961"]
[BlackElo "2141"]
[Result "1-0"]
[Round "06"]
[TimeControl "180+1"]
[Date "2022.11.30"]
[WhiteClock "0:00:32"]
[BlackClock "0:00:04"]

1. e4 {[%clk 0:03:00]}  c6 {[%clk 0:02:58]} 2. d4 {[%clk 0:03:00]}  d5 {[%clk 0:02:58]} 3. Nd2 {[%clk 0:03:00]}  dxe4 {[%clk 0:02:58]} 4. Nxe4 {[%clk 0:03:01]}  Bf5 {[%clk 0:02:58]} 5. Ng3 {[%clk 0:03:01]}  Bg6 {[%clk 0:02:58]} 6. h4 {[%clk 0:03:00]}  h6 {[%clk 0:02:58]} 7. Nf3 {[%clk 0:03:00]}  Nf6 {[%clk 0:02:58]} 8. Bd3 {[%clk 0:02:58]}  Bxd3 {[%clk 0:02:57]} 9. Qxd3 {[%clk 0:02:59]}  e6 {[%clk 0:02:56]} 10. O-O {[%clk 0:02:58]}  Bd6 {[%clk 0:02:53]} 11. Ne2 {[%clk 0:02:54]}  Qc7 {[%clk 0:02:51]} 12. c4 {[%clk 0:02:52]}  Nbd7 {[%clk 0:02:44]} 13. a3 {[%clk 0:02:47]}  O-O {[%clk 0:02:40]} 14. b4 {[%clk 0:02:31]}  Rad8 {[%clk 0:02:37]} 15. c5 {[%clk 0:02:28]}  Be7 {[%clk 0:02:36]} 16. Bf4 {[%clk 0:02:28]}  Qc8 {[%clk 0:02:36]} 17. Nd2 {[%clk 0:02:22]}  e5 {[%clk 0:02:28]} 18. dxe5 {[%clk 0:02:20]}  Nxe5 {[%clk 0:02:27]} 19. Qg3 {[%clk 0:02:19]}  Ng6 {[%clk 0:02:23]} 20. Be3 {[%clk 0:02:19]}  Nd5 {[%clk 0:02:17]} 21. Bd4 {[%clk 0:02:17]}  Bf6 {[%clk 0:02:13]} 22. h5 {[%clk 0:02:16]}  Nge7 {[%clk 0:02:06]} 23. Bxf6 {[%clk 0:01:57]}  Nxf6 {[%clk 0:02:06]} 24. Nc4 {[%clk 0:01:57]}  Nf5 {[%clk 0:02:02]} 25. Qf3 {[%clk 0:01:57]}  Rfe8 {[%clk 0:01:40]} 26. Nf4 {[%clk 0:01:50]}  Nd5 {[%clk 0:01:34]} 27. Rad1 {[%clk 0:01:44]}  Nxf4 {[%clk 0:01:30]} 28. Qxf4 {[%clk 0:01:45]}  Rxd1 {[%clk 0:01:18]} 29. Rxd1 {[%clk 0:01:44]}  Qe6 {[%clk 0:01:17]} 30. g4 {[%clk 0:01:41]}  Nh4 {[%clk 0:01:05]} 31. Nd6 {[%clk 0:01:39]}  Rd8 {[%clk 0:01:01]} 32. Qg3 {[%clk 0:01:38]}  Qf6 {[%clk 0:00:58]} 33. Rd3 {[%clk 0:01:34]}  g6 {[%clk 0:00:50]} 34. Kh2 {[%clk 0:01:31]}  Kh7 {[%clk 0:00:47]} 35. Ne4 {[%clk 0:01:30]}  Qe7 {[%clk 0:00:39]} 36. Re3 {[%clk 0:01:30]}  gxh5 {[%clk 0:00:29]} 37. g5 {[%clk 0:01:22]}  Nf5 {[%clk 0:00:23]} 38. Nf6+ {[%clk 0:01:16]}  Qxf6 {[%clk 0:00:22]} 39. gxf6 {[%clk 0:01:15]}  Nxg3 {[%clk 0:00:22]} 40. Kxg3 {[%clk 0:01:13]}  Kg6 {[%clk 0:00:22]} 41. Re7 {[%clk 0:01:13]}  Rb8 {[%clk 0:00:22]} 42. Kh4 {[%clk 0:01:10]}  Kxf6 {[%clk 0:00:20]} 43. Rd7 {[%clk 0:01:10]}  Ke6 {[%clk 0:00:20]} 44. Rc7 {[%clk 0:01:08]}  Kd5 {[%clk 0:00:18]} 45. Rxf7 {[%clk 0:01:05]}  Kc4 {[%clk 0:00:17]} 46. Kxh5 {[%clk 0:01:05]}  Kb3 {[%clk 0:00:17]} 47. Rf3+ {[%clk 0:01:05]}  Ka4 {[%clk 0:00:17]} 48. Kxh6 {[%clk 0:01:03]}  Rg8 {[%clk 0:00:17]} 49. Re3 {[%clk 0:01:00]}  Rf8 {[%clk 0:00:16]} 50. f3 {[%clk 0:00:56]}  b6 {[%clk 0:00:16]} 51. cxb6 {[%clk 0:00:55]}  axb6 {[%clk 0:00:15]} 52. Kg7 {[%clk 0:00:55]}  Rf4 {[%clk 0:00:14]} 53. Kg6 {[%clk 0:00:53]}  c5 {[%clk 0:00:13]} 54. bxc5 {[%clk 0:00:52]}  bxc5 {[%clk 0:00:13]} 55. Kg5 {[%clk 0:00:53]}  Rf8 {[%clk 0:00:12]} 56. f4 {[%clk 0:00:54]}  c4 {[%clk 0:00:11]} 57. f5 {[%clk 0:00:53]}  Rg8+ {[%clk 0:00:07]} 58. Kf6 {[%clk 0:00:52]}  Rd8 {[%clk 0:00:07]} 59. Rc3 {[%clk 0:00:47]}  Kb5 {[%clk 0:00:06]} 60. Ke7 {[%clk 0:00:42]}  Rd3 {[%clk 0:00:05]} 61. Rc1 {[%clk 0:00:39]}  Rxa3 {[%clk 0:00:05]} 62. f6 {[%clk 0:00:39]}  Rf3 {[%clk 0:00:05]} 63. f7 {[%clk 0:00:39]}  Kb4 {[%clk 0:00:05]} 64. Rb1+ {[%clk 0:00:33]}  Ka3 {[%clk 0:00:05]} 65. Rb6 {[%clk 0:00:33]}  c3 {[%clk 0:00:04]} 66. Rf6 {[%clk 0:00:33]}  Re3+ {[%clk 0:00:04]} 67. Kd7 {[%clk 0:00:32]}  Rd3+ {[%clk 0:00:04]} 68. Kc7 {[%clk 0:00:32]} 1-0


[Site "https://www.chess.com"]

[Event "Titled Tuesday Blitz November 29 Early 2022"]
[White "Ozen, Bahadir"]
[Black "Manukyan, Sargis A."]
[WhiteFideId "6337058"]
[BlackFideId "13303970"]
[WhiteElo "2860"]
[BlackElo "2537"]
[Result "1-0"]
[Round "06"]
[TimeControl "180+1"]
[Date "2022.11.30"]
[WhiteClock "0:01:20"]
[BlackClock "0:00:14"]

1. g3 {[%clk 0:03:00]}  Nf6 {[%clk 0:02:57]} 2. Bg2 {[%clk 0:03:00]}  g6 {[%clk 0:02:55]} 3. Nf3 {[%clk 0:03:00]}  Bg7 {[%clk 0:02:55]} 4. O-O {[%clk 0:03:01]}  b5 {[%clk 0:02:55]} 5. d3 {[%clk 0:02:48]}  Bb7 {[%clk 0:02:53]} 6. e4 {[%clk 0:02:49]}  d6 {[%clk 0:02:42]} 7. Nh4 {[%clk 0:02:49]}  c5 {[%clk 0:02:32]} 8. e5 {[%clk 0:02:42]}  Bxg2 {[%clk 0:02:05]} 9. exf6 {[%clk 0:02:42]}  Bxf1 {[%clk 0:02:04]} 10. fxg7 {[%clk 0:02:41]}  Rg8 {[%clk 0:02:01]} 11. Qxf1 {[%clk 0:02:34]}  Rxg7 {[%clk 0:01:56]} 12. Qg2 {[%clk 0:02:17]}  Nd7 {[%clk 0:01:55]} 13. Bh6 {[%clk 0:02:11]}  Rg8 {[%clk 0:01:54]} 14. Nc3 {[%clk 0:02:12]}  Rb8 {[%clk 0:01:49]} 15. Re1 {[%clk 0:02:11]}  e6 {[%clk 0:01:11]} 16. a4 {[%clk 0:01:44]}  bxa4 {[%clk 0:01:06]} 17. Qc6 {[%clk 0:01:40]}  Qb6 {[%clk 0:00:49]} 18. Qxa4 {[%clk 0:01:36]}  g5 {[%clk 0:00:23]} 19. Nd5 {[%clk 0:01:30]}  Qb7 {[%clk 0:00:15]} 20. Nf6+ {[%clk 0:01:29]}  Ke7 {[%clk 0:00:15]} 21. Nxg8+ {[%clk 0:01:27]}  Rxg8 {[%clk 0:00:16]} 22. Nf5+ {[%clk 0:01:22]}  Kf6 {[%clk 0:00:15]} 23. Nxd6 {[%clk 0:01:22]}  Qd5 {[%clk 0:00:14]} 24. Qxd7 {[%clk 0:01:20]} 1-0


[Site "https://www.chess.com"]